[Event "*** Titled Tuesday Blitz"]
[Site "Chess.com"]
[Date "2019.08.06"]
[Round "6"]
[White "GMHess"]
[Black "Jospem"]
[Result "1/2-1/2"]
[WhiteElo "2800"]
[BlackElo "2915"]
[TimeControl "180+2"]
[EndTime "14:25:21 PDT"]
[Termination "Game drawn - insufficient material"]

1. d4 {[%clk 0:02:38.9]} 1... Nf6 {[%clk 0:02:59.9]} 2. c4 {[%clk 0:02:36.4]}
2... e6 {[%clk 0:03:01]} 3. Nc3 {[%clk 0:02:36.4]} 3... Bb4 {[%clk 0:03:02.2]}
4. Qc2 {[%clk 0:02:37.8]} 4... O-O {[%clk 0:03:02.6]} 5. a3 {[%clk 0:02:39.2]}
5... Bxc3+ {[%clk 0:03:03.8]} 6. Qxc3 {[%clk 0:02:41.1]} 6... b6 {[%clk
0:03:05.7]} 7. Nf3 {[%clk 0:02:41.8]} 7... Bb7 {[%clk 0:03:06.7]} 8. Bg5 {[%clk
0:02:43.3]} 8... d6 {[%clk 0:03:06.2]} 9. e3 {[%clk 0:02:38.5]} 9... Nbd7 {[%clk
0:03:05.8]} 10. Rd1 {[%clk 0:02:31.3]} 10... Ne4 {[%clk 0:02:41.6]} 11. Bxd8
{[%clk 0:02:32.3]} 11... Nxc3 {[%clk 0:02:40]} 12. Rd3 {[%clk 0:02:27]} 12...
Rfxd8 {[%clk 0:02:28.8]} 13. Rxc3 {[%clk 0:02:27.6]} 13... c5 {[%clk 0:02:30.5]}
14. Be2 {[%clk 0:02:19.2]} 14... Nf6 {[%clk 0:02:21.8]} 15. O-O {[%clk
0:02:17.4]} 15... Kf8 {[%clk 0:02:22.9]} 16. Rd1 {[%clk 0:01:57.6]} 16... Ke7
{[%clk 0:02:23.5]} 17. dxc5 {[%clk 0:01:35.5]} 17... bxc5 {[%clk 0:02:22]} 18.
b4 {[%clk 0:01:34]} 18... cxb4 {[%clk 0:02:10.4]} 19. axb4 {[%clk 0:01:35.9]}
19... a5 {[%clk 0:02:11.9]} 20. b5 {[%clk 0:01:31.7]} 20... Ne4 {[%clk
0:01:59.6]} 21. Ra3 {[%clk 0:01:32]} 21... d5 {[%clk 0:01:48.5]} 22. Rda1 {[%clk
0:01:05.3]} 22... dxc4 {[%clk 0:01:26]} 23. Bxc4 {[%clk 0:01:07.2]} 23... Nc5
{[%clk 0:01:07.1]} 24. Rxa5 {[%clk 0:00:40.5]} 24... Rxa5 {[%clk 0:01:07.4]} 25.
Rxa5 {[%clk 0:00:42.4]} 25... Rd1+ {[%clk 0:01:08.9]} 26. Bf1 {[%clk 0:00:43.7]}
26... Be4 {[%clk 0:00:49.4]} 27. Ra7+ {[%clk 0:00:09.7]} 27... Ke8 {[%clk
0:00:45.7]} 28. h4 {[%clk 0:00:05.1]} 28... Bd3 {[%clk 0:00:44]} 29. Nh2 {[%clk
0:00:05.7]} 29... Bxb5 {[%clk 0:00:22.9]} 30. Ra5 {[%clk 0:00:05.9]} 30... Bxf1
{[%clk 0:00:24]} 31. Nxf1 {[%clk 0:00:07.5]} 31... Nd3 {[%clk 0:00:20.5]} 32.
Ra2 {[%clk 0:00:05.6]} 32... h5 {[%clk 0:00:16.1]} 33. Rd2 {[%clk 0:00:05.4]}
33... Rxd2 {[%clk 0:00:12.1]} 34. Nxd2 {[%clk 0:00:07.3]} 34... Ke7 {[%clk
0:00:14]} 35. g3 {[%clk 0:00:07.5]} 35... Kf6 {[%clk 0:00:15.5]} 36. Kg2 {[%clk
0:00:09.1]} 36... Kf5 {[%clk 0:00:17]} 37. Nf3 {[%clk 0:00:09.9]} 37... e5
{[%clk 0:00:16.8]} 38. Ng5 {[%clk 0:00:10]} 38... f6 {[%clk 0:00:17.3]} 39. e4+
{[%clk 0:00:09.3]} 39... Kg6 {[%clk 0:00:16.5]} 40. Nf3 {[%clk 0:00:10.2]} 40...
Kf7 {[%clk 0:00:17.2]} 41. Kf1 {[%clk 0:00:11.1]} 41... Nc5 {[%clk 0:00:17.5]}
42. Nd2 {[%clk 0:00:11.7]} 42... g6 {[%clk 0:00:19.4]} 43. Ke2 {[%clk
0:00:12.6]} 43... Ke6 {[%clk 0:00:21]} 44. Ke3 {[%clk 0:00:13.4]} 44... f5
{[%clk 0:00:22.6]} 45. f3 {[%clk 0:00:09.8]} 45... Kf6 {[%clk 0:00:21.5]} 46. f4
{[%clk 0:00:07.2]} 46... exf4+ {[%clk 0:00:19.9]} 47. Kxf4 {[%clk 0:00:09.1]}
47... Ne6+ {[%clk 0:00:14]} 48. Ke3 {[%clk 0:00:07.7]} 48... fxe4 {[%clk
0:00:13.3]} 49. Kxe4 {[%clk 0:00:07.2]} 49... Nc5+ {[%clk 0:00:14.6]} 50. Kf3
{[%clk 0:00:07.6]} 50... Kf5 {[%clk 0:00:15.3]} 51. Nc4 {[%clk 0:00:08.6]} 51...
Ne6 {[%clk 0:00:16.1]} 52. Ne3+ {[%clk 0:00:09.8]} 52... Ke5 {[%clk 0:00:17.2]}
53. Nc4+ {[%clk 0:00:11.2]} 53... Kd4 {[%clk 0:00:18.4]} 54. Nd2 {[%clk
0:00:10.4]} 54... Ke5 {[%clk 0:00:15.9]} 55. Nc4+ {[%clk 0:00:11.2]} 55... Kd4
{[%clk 0:00:17.6]} 56. Nd6 {[%clk 0:00:11.5]} 56... Kd5 {[%clk 0:00:18.3]} 57.
Nf7 {[%clk 0:00:12]} 57... Nd4+ {[%clk 0:00:16.1]} 58. Ke3 {[%clk 0:00:09.5]}
58... Nf5+ {[%clk 0:00:14.1]} 59. Kf4 {[%clk 0:00:10.7]} 59... Ke6 {[%clk
0:00:15.5]} 60. Ne5 {[%clk 0:00:08.8]} 60... Ne7 {[%clk 0:00:14.2]} 61. Nxg6
{[%clk 0:00:04.9]} 61... Nxg6+ {[%clk 0:00:10]} 62. Kg5 {[%clk 0:00:06.6]} 62...
Ne5 {[%clk 0:00:09]} 63. Kxh5 {[%clk 0:00:07.6]} 63... Kf5 {[%clk 0:00:10.9]}
64. Kh6 {[%clk 0:00:08.6]} 64... Kf6 {[%clk 0:00:10.1]} 65. Kh5 {[%clk
0:00:08.8]} 65... Ng6 {[%clk 0:00:09.2]} 66. Kg4 {[%clk 0:00:10.1]} 66... Ne5+
{[%clk 0:00:10.1]} 67. Kf4 {[%clk 0:00:11.3]} 67... Ng6+ {[%clk 0:00:12]} 68.
Ke4 {[%clk 0:00:12.5]} 68... Ne5 {[%clk 0:00:13.9]} 69. g4 {[%clk 0:00:13]}
69... Nf7 {[%clk 0:00:15.8]} 70. h5 {[%clk 0:00:14.4]} 70... Kg5 {[%clk
0:00:17]} 71. h6 {[%clk 0:00:15.5]} 71... Nh8 {[%clk 0:00:17.8]} 72. h7 {[%clk
0:00:16.9]} 72... Kg6 {[%clk 0:00:19.7]} 73. Kd3 {[%clk 0:00:18.3]} 73... Kg7
{[%clk 0:00:21.6]} 74. Kc2 {[%clk 0:00:20.2]} 74... Nf7 {[%clk 0:00:23.4]} 75.
Kb1 {[%clk 0:00:22.1]} 75... Kh8 {[%clk 0:00:25.3]} 76. g5 {[%clk 0:00:23.6]}
76... Ne5 {[%clk 0:00:27.2]} 77. g6 {[%clk 0:00:25]} 77... Nxg6 {[%clk
0:00:29.1]} 78. Ka1 {[%clk 0:00:26]} 78... Ne5 {[%clk 0:00:31]} 79. Kb1 {[%clk
0:00:27.4]} 79... Nc6 {[%clk 0:00:32.9]} 80. Ka1 {[%clk 0:00:29.3]} 80... Na5
{[%clk 0:00:34.8]} 81. Kb1 {[%clk 0:00:30.8]} 81... Nb7 {[%clk 0:00:36.7]} 82.
Ka1 {[%clk 0:00:32.7]} 82... Nd6 {[%clk 0:00:38.3]} 83. Kb1 {[%clk 0:00:34.6]}
83... Nc8 {[%clk 0:00:40.2]} 84. Ka1 {[%clk 0:00:36.5]} 84... Ne7 {[%clk
0:00:42.1]} 85. Kb1 {[%clk 0:00:38.4]} 85... Ng6 {[%clk 0:00:44]} 86. Ka1 {[%clk
0:00:40.3]} 86... Nh4 {[%clk 0:00:45.9]} 87. Kb1 {[%clk 0:00:42.2]} 87... Nf3
{[%clk 0:00:47.8]} 88. Ka1 {[%clk 0:00:44.1]} 88... Nh2 {[%clk 0:00:49.7]} 89.
Kb1 {[%clk 0:00:46]} 89... Nf1 {[%clk 0:00:51.6]} 90. Ka1 {[%clk 0:00:47.9]}
90... Ne3 {[%clk 0:00:53.5]} 91. Kb1 {[%clk 0:00:49.8]} 91... Nc2 {[%clk
0:00:55.4]} 92. Ka2 {[%clk 0:00:51.4]} 92... Na1 {[%clk 0:00:57.3]} 93. Kxa1
{[%clk 0:00:51.7]} 93... Kxh7 {[%clk 0:00:58.8]} 1/2-1/2

[Event "*** Titled Tuesday Blitz"]
[Site "Chess.com"]
[Date "2019.08.06"]
[Round "6"]
[White "marianokar"]
[Black "EugeneRougon"]
[Result "1-0"]
[WhiteElo "2448"]
[BlackElo "2636"]
[TimeControl "180+2"]
[EndTime "14:25:27 PDT"]
[Termination "marianokar won by resignation"]

1. d4 {[%clk 0:03:01.9]} 1... d5 {[%clk 0:02:59.6]} 2. c4 {[%clk 0:03:02.2]}
2... c6 {[%clk 0:03:00.9]} 3. Nf3 {[%clk 0:03:02.8]} 3... Nf6 {[%clk 0:03:02.4]}
4. e3 {[%clk 0:03:04]} 4... e6 {[%clk 0:03:01.9]} 5. Nbd2 {[%clk 0:03:03.7]}
5... c5 {[%clk 0:02:59.9]} 6. b3 {[%clk 0:02:58.1]} 6... cxd4 {[%clk 0:02:58.3]}
7. exd4 {[%clk 0:02:58.8]} 7... Nc6 {[%clk 0:02:57.3]} 8. Bb2 {[%clk 0:02:59.6]}
8... Be7 {[%clk 0:02:58.7]} 9. a3 {[%clk 0:02:52.6]} 9... b6 {[%clk 0:02:52.5]}
10. Bd3 {[%clk 0:02:45.6]} 10... Bb7 {[%clk 0:02:51.7]} 11. Qe2 {[%clk
0:02:44.1]} 11... O-O {[%clk 0:02:51.1]} 12. O-O {[%clk 0:02:44.3]} 12... a5
{[%clk 0:02:49]} 13. Rac1 {[%clk 0:02:14.7]} 13... Rc8 {[%clk 0:02:48.6]} 14. c5
{[%clk 0:01:50.7]} 14... Nd7 {[%clk 0:02:31.5]} 15. cxb6 {[%clk 0:01:31.2]}
15... Qxb6 {[%clk 0:02:29.4]} 16. Rc2 {[%clk 0:01:29.3]} 16... Bf6 {[%clk
0:02:20.4]} 17. Qe3 {[%clk 0:01:23.4]} 17... e5 {[%clk 0:02:08.3]} 18. dxe5
{[%clk 0:00:44.7]} 18... Qxe3 {[%clk 0:02:06.3]} 19. fxe3 {[%clk 0:00:45.3]}
19... Ncxe5 {[%clk 0:01:47.7]} 20. Nxe5 {[%clk 0:00:26.1]} 20... Nxe5 {[%clk
0:01:37.1]} 21. Rxc8 {[%clk 0:00:22.8]} 21... Bxc8 {[%clk 0:01:31.4]} 22. Bxe5
{[%clk 0:00:21]} 22... Bxe5 {[%clk 0:01:31.3]} 23. Nf3 {[%clk 0:00:22]} 23...
Bd6 {[%clk 0:01:28.3]} 24. a4 {[%clk 0:00:21.8]} 24... Re8 {[%clk 0:01:23.6]}
25. Kf2 {[%clk 0:00:22]} 25... Bc5 {[%clk 0:00:45.7]} 26. Nd4 {[%clk 0:00:22.1]}
26... Bd7 {[%clk 0:00:39.6]} 27. Rc1 {[%clk 0:00:20.9]} 27... Rc8 {[%clk
0:00:40.6]} 28. Bb5 {[%clk 0:00:19.6]} 28... Bxb5 {[%clk 0:00:20.9]} 29. axb5
{[%clk 0:00:20]} 29... Rc7 {[%clk 0:00:21.3]} 30. Nc6 {[%clk 0:00:19]} 30... Bd6
{[%clk 0:00:18.6]} 31. Rd1 {[%clk 0:00:18.7]} 31... Kf8 {[%clk 0:00:17.1]} 32.
Rxd5 {[%clk 0:00:19.4]} 32... Be7 {[%clk 0:00:19]} 33. Nxa5 {[%clk 0:00:15.8]}
33... Bc5 {[%clk 0:00:20]} 34. Nc6 {[%clk 0:00:15.9]} 34... Be7 {[%clk
0:00:21.1]} 35. Rd4 {[%clk 0:00:15.3]} 35... Rb7 {[%clk 0:00:21.9]} 36. Ra4
{[%clk 0:00:14.5]} 36... f6 {[%clk 0:00:21.1]} 37. Ra7 {[%clk 0:00:15]} 37...
Rxa7 {[%clk 0:00:20.7]} 38. Nxa7 {[%clk 0:00:15.9]} 38... Ke8 {[%clk 0:00:22.4]}
39. Nc6 {[%clk 0:00:16.6]} 39... Bc5 {[%clk 0:00:23.9]} 40. Kf3 {[%clk
0:00:16.6]} 40... Kd7 {[%clk 0:00:24.7]} 41. Ke4 {[%clk 0:00:17.8]} 41... Kd6
{[%clk 0:00:24.4]} 42. g4 {[%clk 0:00:17.9]} 42... Bb6 {[%clk 0:00:25.5]} 43. h3
{[%clk 0:00:17.7]} 43... Kc5 {[%clk 0:00:25.3]} 44. Nd4 {[%clk 0:00:19]} 44...
g6 {[%clk 0:00:24.4]} 45. h4 {[%clk 0:00:18.2]} 45... Kd6 {[%clk 0:00:24]} 46.
b4 {[%clk 0:00:18.1]} 46... Ba7 {[%clk 0:00:21.3]} 47. Nc6 {[%clk 0:00:17.2]}
47... Bb6 {[%clk 0:00:22.2]} 48. Na5 {[%clk 0:00:16.5]} 48... Ke6 {[%clk
0:00:23]} 49. Nc4 {[%clk 0:00:17.3]} 49... f5+ {[%clk 0:00:23.5]} 50. gxf5+
{[%clk 0:00:17.2]} 50... gxf5+ {[%clk 0:00:25.4]} 51. Kd3 {[%clk 0:00:17.6]}
51... Bc7 {[%clk 0:00:24.2]} 52. b6 {[%clk 0:00:18.8]} 52... Bg3 {[%clk
0:00:24.9]} 53. h5 {[%clk 0:00:18.8]} 53... Kd5 {[%clk 0:00:24.9]} 54. Na5
{[%clk 0:00:19.2]} 54... Bd6 {[%clk 0:00:21.7]} 55. Kc3 {[%clk 0:00:19.2]} 55...
f4 {[%clk 0:00:21]} 56. exf4 {[%clk 0:00:19.2]} 56... Bxf4 {[%clk 0:00:22.9]}
57. b7 {[%clk 0:00:19.7]} 57... Bc7 {[%clk 0:00:21.6]} 58. Kb3 {[%clk
0:00:19.7]} 58... Kd6 {[%clk 0:00:20.5]} 59. Kc4 {[%clk 0:00:19]} 59... Bb8
{[%clk 0:00:20.8]} 60. Kb5 {[%clk 0:00:19.5]} 60... Kc7 {[%clk 0:00:19]} 61. Ka6
{[%clk 0:00:20.7]} 61... Kd6 {[%clk 0:00:18.8]} 62. b5 {[%clk 0:00:21.6]} 62...
Kd7 {[%clk 0:00:17.1]} 63. Nc6 {[%clk 0:00:23]} 63... Kc7 {[%clk 0:00:18.4]} 64.
Nxb8 {[%clk 0:00:22.2]} 64... Kxb8 {[%clk 0:00:19.6]} 65. Ka5 {[%clk 0:00:21.3]}
65... Kxb7 {[%clk 0:00:20]} 66. Kb4 {[%clk 0:00:22.7]} 66... Kb6 {[%clk
0:00:20.9]} 67. Kc4 {[%clk 0:00:24]} 67... h6 {[%clk 0:00:19.9]} 68. Kb4 {[%clk
0:00:24.6]} 68... Kb7 {[%clk 0:00:21.1]} 69. Kc5 {[%clk 0:00:25.9]} 69... Kc7
{[%clk 0:00:22.7]} 70. Kd5 {[%clk 0:00:26.4]} 70... Kb6 {[%clk 0:00:23.4]} 71.
Ke6 {[%clk 0:00:28.3]} 71... Kxb5 {[%clk 0:00:25.3]} 72. Kf6 {[%clk 0:00:30.2]}
72... Kc6 {[%clk 0:00:27.1]} 73. Kg6 {[%clk 0:00:32.1]} 73... Kd7 {[%clk
0:00:29]} 74. Kxh6 {[%clk 0:00:34]} 74... Ke7 {[%clk 0:00:30.5]} 75. Kg7 {[%clk
0:00:35.9]} 1-0

[Event "*** Titled Tuesday Blitz"]
[Site "Chess.com"]
[Date "2019.08.06"]
[Round "6"]
[White "resha1988"]
[Black "GMSrinath"]
[Result "0-1"]
[WhiteElo "2775"]
[BlackElo "2835"]
[TimeControl "180+2"]
[EndTime "14:25:37 PDT"]
[Termination "GMSrinath won by resignation"]

1. d4 {[%clk 0:03:01.9]} 1... Nf6 {[%clk 0:02:59.2]} 2. c4 {[%clk 0:03:00.1]}
2... c5 {[%clk 0:03:00.7]} 3. d5 {[%clk 0:03:00.6]} 3... g6 {[%clk 0:03:02.3]}
4. Nc3 {[%clk 0:03:01.2]} 4... Bg7 {[%clk 0:03:03.8]} 5. e4 {[%clk 0:03:01.5]}
5... O-O {[%clk 0:03:05.1]} 6. Nf3 {[%clk 0:03:01.2]} 6... e6 {[%clk 0:03:06.7]}
7. h3 {[%clk 0:03:01.5]} 7... exd5 {[%clk 0:03:08.2]} 8. exd5 {[%clk 0:03:01.7]}
8... Re8+ {[%clk 0:03:08.6]} 9. Be2 {[%clk 0:02:40.6]} 9... d6 {[%clk
0:03:09.9]} 10. O-O {[%clk 0:02:41.1]} 10... Ne4 {[%clk 0:03:11.5]} 11. Nxe4
{[%clk 0:02:39.9]} 11... Rxe4 {[%clk 0:03:13.4]} 12. Bd3 {[%clk 0:02:40.7]}
12... Re8 {[%clk 0:03:14.1]} 13. Qc2 {[%clk 0:02:38.5]} 13... Nd7 {[%clk
0:03:13.7]} 14. Bf4 {[%clk 0:02:34.1]} 14... Ne5 {[%clk 0:03:05.5]} 15. Nxe5
{[%clk 0:02:28.4]} 15... Bxe5 {[%clk 0:03:07.4]} 16. Bxe5 {[%clk 0:02:28.7]}
16... Rxe5 {[%clk 0:03:09]} 17. f4 {[%clk 0:02:23.8]} 17... Re8 {[%clk
0:02:58.2]} 18. f5 {[%clk 0:02:18.2]} 18... Qg5 {[%clk 0:02:53.1]} 19. Rf3
{[%clk 0:02:14.3]} 19... Bd7 {[%clk 0:01:45.9]} 20. Raf1 {[%clk 0:02:13.2]}
20... Re3 {[%clk 0:01:33]} 21. fxg6 {[%clk 0:00:53]} 21... fxg6 {[%clk 0:01:31]}
22. Qf2 {[%clk 0:00:53.8]} 22... Rxf3 {[%clk 0:01:26.2]} 23. Qxf3 {[%clk
0:00:55.7]} 23... Qe7 {[%clk 0:01:27.3]} 24. Qf6 {[%clk 0:00:52]} 24... Qe3+
{[%clk 0:00:58.3]} 25. Rf2 {[%clk 0:00:51.4]} 25... Qxd3 {[%clk 0:00:34.8]} 26.
Qf7+ {[%clk 0:00:49.3]} 26... Kh8 {[%clk 0:00:36.2]} 27. Qxd7 {[%clk 0:00:43.7]}
27... Qxc4 {[%clk 0:00:36.8]} 28. Rf7 {[%clk 0:00:31.1]} 28... Qd4+ {[%clk
0:00:33.7]} 29. Kh1 {[%clk 0:00:27.3]} 29... Kg8 {[%clk 0:00:20.7]} 30. Qxb7
{[%clk 0:00:11.8]} 30... Re8 {[%clk 0:00:20.8]} 31. Re7 {[%clk 0:00:06.3]} 31...
Qd1+ {[%clk 0:00:13.8]} 32. Kh2 {[%clk 0:00:06.5]} 32... Rxe7 {[%clk 0:00:15.7]}
33. Qxe7 {[%clk 0:00:08.4]} 33... Qxd5 {[%clk 0:00:17.3]} 34. Qxa7 {[%clk
0:00:07.4]} 34... Qe5+ {[%clk 0:00:17.7]} 35. Kh1 {[%clk 0:00:06]} 35... Qxb2
{[%clk 0:00:19.2]} 36. a4 {[%clk 0:00:05.2]} 36... c4 {[%clk 0:00:18.5]} 37.
Qa8+ {[%clk 0:00:03.5]} 37... Kg7 {[%clk 0:00:19.3]} 38. Qa7+ {[%clk 0:00:04.6]}
38... Kf6 {[%clk 0:00:14.3]} 39. a5 {[%clk 0:00:05.9]} 39... Qa1+ {[%clk
0:00:13.3]} 40. Kh2 {[%clk 0:00:06.8]} 40... Qe5+ {[%clk 0:00:15.2]} 41. Kg1
{[%clk 0:00:07.6]} 41... c3 {[%clk 0:00:17.1]} 42. a6 {[%clk 0:00:08.7]} 42...
c2 {[%clk 0:00:12.6]} 43. Qf2+ {[%clk 0:00:09.8]} 43... Qf5 {[%clk 0:00:14.2]}
44. Qd4+ {[%clk 0:00:11]} 44... Kf7 {[%clk 0:00:05]} 45. Qc4+ {[%clk 0:00:12.1]}
45... d5 {[%clk 0:00:06.9]} 46. Qc7+ {[%clk 0:00:12.9]} 46... Kf6 {[%clk
0:00:07.4]} 47. a7 {[%clk 0:00:12.3]} 47... Qd3 {[%clk 0:00:08.6]} 48. a8=Q
{[%clk 0:00:09.5]} 48... Qd1+ {[%clk 0:00:09.7]} 49. Kh2 {[%clk 0:00:10.3]}
49... c1=Q {[%clk 0:00:11.6]} 50. Qad8+ {[%clk 0:00:07.2]} 50... Kf5 {[%clk
0:00:12.9]} 51. Qf8+ {[%clk 0:00:05.6]} 51... Ke4 {[%clk 0:00:14.3]} 52. Qce7+
{[%clk 0:00:04.8]} 52... Kd3 {[%clk 0:00:15.7]} 53. Qa3+ {[%clk 0:00:03.2]}
53... Qxa3 {[%clk 0:00:16]} 54. Qxa3+ {[%clk 0:00:05.1]} 54... Ke2 {[%clk
0:00:17.8]} 55. Qa2+ {[%clk 0:00:04.2]} 55... Kf1 {[%clk 0:00:17.4]} 56. Qa6+
{[%clk 0:00:03.6]} 56... Ke1 {[%clk 0:00:16.5]} 57. Qe6+ {[%clk 0:00:04.8]}
57... Kf1 {[%clk 0:00:17.3]} 58. Qf7+ {[%clk 0:00:05.9]} 58... Ke2 {[%clk
0:00:18.3]} 59. Qe6+ {[%clk 0:00:06.7]} 59... Kf2 {[%clk 0:00:17.2]} 60. Qf7+
{[%clk 0:00:06.2]} 60... Ke3 {[%clk 0:00:18.3]} 61. Qxh7 {[%clk 0:00:06.5]}
61... Qd3 {[%clk 0:00:18.7]} 62. Qh6+ {[%clk 0:00:05.4]} 62... Ke2 {[%clk
0:00:18.5]} 63. h4 {[%clk 0:00:06.1]} 63... Qf5 {[%clk 0:00:17.9]} 64. Kg3
{[%clk 0:00:02.4]} 64... d4 {[%clk 0:00:19]} 65. Qg7 {[%clk 0:00:03.1]} 65... d3
{[%clk 0:00:17.9]} 66. Qe7+ {[%clk 0:00:04.5]} 66... Kd1 {[%clk 0:00:18.7]} 67.
Qa3 {[%clk 0:00:04.4]} 67... Qe5+ {[%clk 0:00:19.4]} 68. Kf3 {[%clk 0:00:05.3]}
68... Qe2+ {[%clk 0:00:19.7]} 69. Kg3 {[%clk 0:00:04.6]} 69... Qe3+ {[%clk
0:00:21]} 70. Kg4 {[%clk 0:00:05]} 70... Ke2 {[%clk 0:00:22.6]} 71. Qa6 {[%clk
0:00:05]} 71... Kf2 {[%clk 0:00:22.5]} 72. Qxg6 {[%clk 0:00:03.7]} 72... Qg3+
{[%clk 0:00:22.7]} 73. Kf5 {[%clk 0:00:04]} 73... Qxg6+ {[%clk 0:00:24.6]} 74.
Kxg6 {[%clk 0:00:05.9]} 74... d2 {[%clk 0:00:26.5]} 75. h5 {[%clk 0:00:07.8]}
75... d1=Q {[%clk 0:00:28.4]} 76. h6 {[%clk 0:00:09.7]} 76... Qd4 {[%clk
0:00:29.3]} 77. h7 {[%clk 0:00:10.4]} 77... Kxg2 {[%clk 0:00:30.4]} 0-1

[Event "*** Titled Tuesday Blitz"]
[Site "Chess.com"]
[Date "2019.08.06"]
[Round "6"]
[White "Blazinq"]
[Black "Tjktiger"]
[Result "0-1"]
[WhiteElo "2604"]
[BlackElo "2822"]
[TimeControl "180+2"]
[EndTime "14:26:00 PDT"]
[Termination "Tjktiger won by resignation"]

1. e4 {[%clk 0:03:01.9]} 1... c5 {[%clk 0:02:50.5]} 2. Nf3 {[%clk 0:03:01.2]}
2... Nc6 {[%clk 0:02:50.7]} 3. d4 {[%clk 0:03:02.4]} 3... cxd4 {[%clk
0:02:51.2]} 4. Nxd4 {[%clk 0:03:04.3]} 4... g6 {[%clk 0:02:52.8]} 5. c4 {[%clk
0:03:05.2]} 5... Bg7 {[%clk 0:02:53.5]} 6. Be3 {[%clk 0:03:05.8]} 6... d6 {[%clk
0:02:53.9]} 7. Nc3 {[%clk 0:03:03.5]} 7... Qb6 {[%clk 0:02:55.1]} 8. Ndb5 {[%clk
0:02:03.2]} 8... Bxc3+ {[%clk 0:02:54.8]} 9. bxc3 {[%clk 0:01:26.2]} 9... Qa5
{[%clk 0:02:54.2]} 10. Qb3 {[%clk 0:01:27.1]} 10... Nf6 {[%clk 0:02:52.6]} 11.
f3 {[%clk 0:01:26.3]} 11... O-O {[%clk 0:02:52.1]} 12. Be2 {[%clk 0:01:27.9]}
12... Be6 {[%clk 0:02:41.3]} 13. O-O {[%clk 0:01:28.9]} 13... Rfc8 {[%clk
0:02:42.2]} 14. Nd4 {[%clk 0:01:27.8]} 14... Bd7 {[%clk 0:02:34.4]} 15. Rab1
{[%clk 0:00:43.8]} 15... Be8 {[%clk 0:02:20.1]} 16. Bf2 {[%clk 0:00:34.2]} 16...
b6 {[%clk 0:02:15.6]} 17. Rfc1 {[%clk 0:00:21.6]} 17... Ne5 {[%clk 0:02:13.3]}
18. Qb4 {[%clk 0:00:22.5]} 18... Qa4 {[%clk 0:02:01.6]} 19. Qxa4 {[%clk
0:00:17.4]} 19... Bxa4 {[%clk 0:02:02.3]} 20. Rb4 {[%clk 0:00:19.3]} 20... Be8
{[%clk 0:02:02.6]} 21. h3 {[%clk 0:00:20.7]} 21... Rab8 {[%clk 0:01:37.2]} 22.
a4 {[%clk 0:00:21.5]} 22... a5 {[%clk 0:01:35.8]} 23. Rb2 {[%clk 0:00:21.6]}
23... Nxc4 {[%clk 0:01:34.3]} 24. Bxc4 {[%clk 0:00:19.2]} 24... Rxc4 {[%clk
0:01:35.3]} 25. Rcb1 {[%clk 0:00:19.6]} 25... Nd7 {[%clk 0:01:17.3]} 26. Nb5
{[%clk 0:00:17.2]} 26... Rxa4 {[%clk 0:01:15.5]} 27. Nc7 {[%clk 0:00:18.8]}
27... Rc4 {[%clk 0:01:10.6]} 28. Nd5 {[%clk 0:00:17.2]} 28... Kf8 {[%clk
0:00:59.6]} 29. Bxb6 {[%clk 0:00:07.5]} 29... e6 {[%clk 0:00:26]} 30. Nf4 {[%clk
0:00:08.9]} 30... Nxb6 {[%clk 0:00:10.8]} 31. Rxb6 {[%clk 0:00:10.8]} 31... Rxb6
{[%clk 0:00:12.7]} 32. Rxb6 {[%clk 0:00:12.7]} 32... Rxc3 {[%clk 0:00:10.8]} 33.
Rxd6 {[%clk 0:00:13.7]} 33... Rc6 {[%clk 0:00:07.9]} 34. Rd8 {[%clk 0:00:13.4]}
34... Ra6 {[%clk 0:00:08.3]} 35. Rd3 {[%clk 0:00:14.7]} 35... a4 {[%clk
0:00:08.1]} 36. Ra3 {[%clk 0:00:16.2]} 36... Bb5 {[%clk 0:00:09.1]} 37. Kf2
{[%clk 0:00:17.3]} 37... Rc6 {[%clk 0:00:08.3]} 38. Ke3 {[%clk 0:00:18]} 38...
Rc2 {[%clk 0:00:09.2]} 39. g3 {[%clk 0:00:14.8]} 39... h6 {[%clk 0:00:07.4]} 40.
h4 {[%clk 0:00:09.7]} 40... Ke7 {[%clk 0:00:06.6]} 41. Nd3 {[%clk 0:00:07.4]}
41... Kd6 {[%clk 0:00:05.4]} 42. e5+ {[%clk 0:00:07]} 42... Kc7 {[%clk
0:00:06.3]} 43. Nb4 {[%clk 0:00:06.8]} 43... Rc1 {[%clk 0:00:06.1]} 44. Na2
{[%clk 0:00:06.4]} 44... Re1+ {[%clk 0:00:04.3]} 45. Kf4 {[%clk 0:00:04.5]}
45... Ra1 {[%clk 0:00:03.5]} 46. Rc3+ {[%clk 0:00:04.5]} 46... Kb6 {[%clk
0:00:04.2]} 47. Nb4 {[%clk 0:00:05.5]} 47... Rb1 {[%clk 0:00:04.6]} 48. Nc2
{[%clk 0:00:06.4]} 48... Rc1 {[%clk 0:00:04.4]} 49. Rc8 {[%clk 0:00:06]} 49...
Kb7 {[%clk 0:00:05.1]} 50. Rc5 {[%clk 0:00:05.8]} 50... Bc6 {[%clk 0:00:04.7]}
51. Rc4 {[%clk 0:00:03.6]} 51... Kc7 {[%clk 0:00:05.4]} 52. g4 {[%clk
0:00:03.7]} 52... Kb6 {[%clk 0:00:03.8]} 53. g5 {[%clk 0:00:04]} 53... h5 {[%clk
0:00:04.1]} 54. Ke3 {[%clk 0:00:04.5]} 54... Bb5 {[%clk 0:00:04.5]} 55. Rc8
{[%clk 0:00:04.8]} 55... Kb7 {[%clk 0:00:05.8]} 56. Rc3 {[%clk 0:00:06]} 56...
Kb6 {[%clk 0:00:07.4]} 57. Kd2 {[%clk 0:00:07.4]} 57... Rh1 {[%clk 0:00:08.6]}
58. Rc8 {[%clk 0:00:07]} 58... Rxh4 {[%clk 0:00:09.7]} 59. Rf8 {[%clk
0:00:08.7]} 59... Rf4 {[%clk 0:00:10.4]} 60. Ke3 {[%clk 0:00:10.3]} 60... Rc4
{[%clk 0:00:11.8]} 61. Nd4 {[%clk 0:00:10.9]} 61... Rc3+ {[%clk 0:00:12.6]} 62.
Kf4 {[%clk 0:00:08.9]} 62... Ba6 {[%clk 0:00:12.8]} 63. Rxf7 {[%clk 0:00:09.6]}
63... a3 {[%clk 0:00:14.1]} 64. Re7 {[%clk 0:00:04.1]} 64... Bc8 {[%clk
0:00:14.4]} 65. Nxe6 {[%clk 0:00:03.2]} 65... a2 {[%clk 0:00:14.6]} 66. Nc7
{[%clk 0:00:03.1]} 66... Rxc7 {[%clk 0:00:14.6]} 0-1